bitfinex/quotes_SOLUSD_20241216
["timestamp","ask_amount","ask_price","bid_price","bid_amount"]
[1734340357103,0.12549,218.96,218.92,0.30229278]
[1734340357522,6.5105,218.99,218.92,0.30229278]
[1734340357722,8.5644411,219.04,218.92,20.62451372]
[1734340358027,0.25098,219.03,218.92,20.62451372]
[1734340358222,0.12549,219.03,218.93,20.0]
[1734340358825,0.37647,219.03,218.93,20.0]
[1734340359021,0.37647,219.03,218.92,20.62451372]
[1734340359331,8.5644411,219.04,218.94,20.0]
[1734340359503,8.5644411,219.04,218.95,20.0]
[1734340359703,0.85609069,219.03,218.95,20.0]
[1734340360134,7.7081,219.04,218.95,20.0]
[1734340360721,0.12549,219.03,218.95,20.0]
[1734340361105,0.12549,219.02,218.93,20.0]
[1734340361642,0.85622375,219.09,218.98,20.0]
[1734340362621,0.12549,219.07,218.98,20.0]
[1734340362826,0.12549,219.05,218.92,0.30229278]
[1734340363132,0.12549,219.03,218.92,0.30229278]
[1734340363322,0.12549,219.01,218.92,0.30229278]
[1734340363527,0.12549,219.0,218.92,0.30229278]
[1734340364142,0.12549,219.01,218.93,20.0]
[1734340364336,0.25098,219.04,218.93,20.0]
[1734340364337,0.12549,219.03,218.93,20.0]
[1734340364633,0.25098,219.01,218.93,20.0]
[1734340365922,1.82509,219.07,218.93,20.0]
[1734340365923,0.12549,219.03,218.93,20.0]
[1734340366231,0.25098,219.02,218.92,0.30229278]
[1734340366451,0.12549,219.0,218.92,20.30229278]
[1734340366737,0.12549,219.03,218.92,20.30229278]
[1734340366924,0.12549,219.01,218.92,20.30229278]
[1734340367128,0.12549,219.01,218.93,20.0]
[1734340367720,0.12549,219.01,218.92,0.30229278]
[1734340368034,0.12549,219.02,218.93,20.0]
[1734340368221,0.85622358,219.01,218.93,20.0]
[1734340369140,0.12549,219.03,218.93,20.0]
[1734340369352,0.12549,219.02,218.93,20.0]
[1734340369555,0.85621049,219.01,218.93,20.0]
[1734340369840,0.12549,219.03,218.94,20.0]
[1734340370142,0.25098,219.03,218.94,20.0]
[1734340370849,0.12549,219.04,218.94,20.0]
[1734340371014,0.12549,219.06,218.94,20.0]
[1734340371336,11.4113,219.08,218.95,20.0]
[1734340371337,0.12549,219.04,218.95,20.0]
[1734340371928,24.498185,219.1,218.97,20.0]
[1734340371929,0.85606796,219.07,218.97,20.0]
[1734340372134,0.12549,219.08,218.97,20.0]
[1734340372337,0.37647,219.08,218.97,20.0]
[1734340372535,0.37647,219.06,218.97,20.0]
[1734340373062,0.85611083,219.09,218.95,20.0]
[1734340373063,0.12549,219.08,218.95,20.0]
[1734340373228,0.12549,219.08,218.94,20.0]
[1734340373754,0.37647,219.08,218.96,20.0]
[1734340373937,0.37647,219.06,218.96,20.0]
[1734340374134,0.25098,219.04,218.96,20.0]
[1734340374347,0.12549,219.02,218.9,22.88576473]
[1734340374644,0.25098,219.02,218.93,20.0]
[1734340375423,0.25098,219.02,218.9,15.26893383]
[1734340375424,0.25098,218.97,218.9,1.23966473]
[1734340375641,0.12549,218.96,218.9,0.5547848]
[1734340378349,0.12549,218.97,218.9,0.5547848]
[1734340380050,20.85640467,218.98,218.9,0.5547848]
[1734340380345,20.0,218.98,218.9,0.5547848]
[1734340380746,0.85634727,218.99,218.9,0.5547848]
[1734340381759,0.85632893,219.0,218.9,0.5547848]
[1734340382446,0.25098,218.99,218.9,0.5547848]
[1734340382621,0.8564252,218.98,218.9,0.5547848]
[1734340383248,0.12549,218.97,218.9,0.5547848]
[1734340383627,0.98193214,218.97,218.9,0.5547848]
[1734340384333,0.85644214,218.97,218.9,0.5547848]
[1734340384541,7.6648,219.01,218.9,21.23982501]
[1734340384542,0.12549,218.99,218.9,21.23982501]
[1734340385457,7.6648,219.01,218.94,20.0]
[1734340386249,7.6648,219.01,218.92,0.68494256]
[1734340386933,0.85617821,219.05,218.94,20.0]
[1734340387329,0.12549,219.04,218.94,20.0]
[1734340387638,0.12549,219.04,218.91,0.68488421]
[1734340387639,0.85617429,219.03,218.93,20.0]
[1734340388450,0.12549,219.03,218.93,20.0]
[1734340388749,0.12549,219.03,218.93,20.68492143]
[1734340389654,0.12549,219.03,218.94,20.0]
[1734340389824,0.85615093,219.04,218.94,20.0]
[1734340390026,0.12549,219.04,218.94,20.0]
[1734340390741,0.85612305,219.03,218.94,20.0]
[1734340390937,0.85612305,219.03,218.93,20.0]
[1734340391144,7.32927122,219.06,218.94,0.68493698]
[1734340391454,0.12549,219.05,218.94,0.68493698]
[1734340391831,11.4102,219.11,218.94,0.68493698]
[1734340391832,0.85604928,219.1,218.99,20.0]
[1734340392875,0.12549,219.1,218.99,20.0]
[1734340393164,0.85589055,219.09,218.99,20.0]
[1734340393855,0.85590533,219.11,218.99,20.0]
[1734340394025,0.85581998,219.12,219.01,20.0]
[1734340394231,7.32998139,219.13,219.01,20.0]
[1734340394533,0.12549,219.12,219.01,20.0]
[1734340394968,0.12549,219.12,219.01,20.68463412]
[1734340395462,0.25098,219.12,219.01,20.68463412]
[1734340395672,0.25098,219.12,219.02,20.0]
[1734340397572,6.4742,219.17,219.03,8.61246145]
[1734340397876,6.4742,219.17,219.08,20.0]
[1734340398186,6.5363,219.18,219.09,20.0]
[1734340398662,6.5363,219.18,219.08,20.68444007]
[1734340399344,0.25098,219.21,219.09,20.0]
[1734340399548,0.25098,219.19,219.09,20.0]
[1734340399746,0.25098,219.19,219.09,20.68444047]
[1734340399747,0.85555059,219.18,219.09,20.68444047]
[1734340399929,0.37647,219.21,219.09,20.68444047]
[1734340400267,0.12549,219.17,219.08,20.0]
[1734340400561,0.25098,219.16,219.05,20.0]
[1734340400743,0.25098,219.16,219.06,0.68454798]
[1734340401100,0.12549,219.12,219.0,0.68452688]
[1734340401288,0.12549,219.11,219.0,0.68452688]
[1734340401600,20.12549,219.11,219.0,0.68452688]
[1734340401776,20.0,219.11,219.0,0.68452688]
[1734340401976,0.12549,219.12,219.0,0.68452688]
[1734340402588,0.25098,219.12,219.0,8.61234898]
[1734340402810,0.25098,219.12,219.0,0.68452688]
[1734340402961,0.85579458,219.11,219.0,0.68452688]
[1734340403164,0.25098,219.12,219.0,0.68452688]
[1734340403464,0.12549,219.12,219.02,20.0]
[1734340404265,7.8131,219.14,219.01,0.12549]
[1734340404501,0.8557396,219.13,219.02,0.68459168]
[1734340404985,0.8557396,219.13,219.01,0.12549]
[1734340405191,0.12549,219.12,219.0,12.09989687]
[1734340405370,0.12549,219.12,219.01,20.0]
[1734340405371,0.12549,219.1,219.01,20.0]
[1734340406172,0.12549,219.1,219.0,20.0]
[1734340406369,0.8559015,219.1,219.0,20.0]
[1734340407597,0.12549,219.11,219.0,20.0]
[1734340407802,0.85591127,219.1,219.0,20.0]
[1734340408166,0.981376,219.11,219.0,20.0]
[1734340408806,0.85584034,219.13,219.01,20.68467227]
[1734340408982,0.85584034,219.13,219.02,20.0]
[1734340409186,7.8131,219.14,219.01,20.68467227]
[1734340409410,0.85572331,219.13,219.02,0.12549]
[1734340409614,0.85572331,219.13,219.01,20.68467227]
[1734340409615,0.12549,219.12,219.01,20.68467227]
[1734340410790,0.25098,219.12,219.01,20.0]
[1734340411031,0.12549,219.1,218.98,12.10116588]
[1734340411192,0.25098,219.1,219.0,20.0]
[1734340411396,0.12549,219.1,219.0,20.0]
[1734340411897,0.85587191,219.1,219.0,20.0]
[1734340412116,0.25098,219.09,219.0,20.0]
[1734340412409,0.85594689,219.08,219.0,20.0]
[1734340412607,0.12549,219.11,219.0,20.0]
[1734340412608,0.25098,219.11,219.0,20.0]
[1734340412809,0.98138757,219.11,219.01,0.68471806]
[1734340413020,0.12549,219.11,219.01,0.68471806]
[1734340413191,0.25098,219.11,219.01,20.68471806]
[1734340414280,0.85589757,219.12,219.02,20.0]
[1734340414281,0.12549,219.12,219.02,20.0]
[1734340414481,0.98125464,219.13,219.02,20.0]
[1734340414690,0.98125464,219.13,219.02,20.68461466]
[1734340415996,7.8131,219.14,219.03,20.0]
[1734340416197,7.8131,219.14,219.04,20.68455364]
[1734340416719,0.12549,219.13,219.04,20.68455364]
[1734340419689,7.8131,219.14,219.04,20.68455364]
[1734340419894,7.8131,219.14,219.04,0.68455364]
[1734340420213,6.1833,219.14,219.05,27.9278221]
[1734340420420,1.5462,219.19,219.09,20.0]
[1734340420618,1.5462,219.19,219.1,0.68441748]
[1734340421116,1.5462,219.19,219.11,20.0]
[1734340422506,1.5462,219.19,219.12,0.6843757]
[1734340422916,0.98095296,219.18,219.08,20.0]
[1734340423302,0.12549,219.17,219.08,20.0]
[1734340424021,0.12549,219.17,219.06,0.68437037]
[1734340424341,0.12549,219.13,218.99,1.5232]
[1734340424497,0.12549,219.12,218.99,2.20789692]
[1734340425133,0.12549,219.12,218.99,10.13571902]
[1734340425613,0.12549,219.12,219.02,20.0]
[1734340426900,0.12549,219.12,219.03,0.6846469]
[1734340427122,6.6427,219.14,219.03,0.6846469]
[1734340427803,0.12549,219.13,219.03,0.6846469]
[1734340428039,0.12549,219.13,219.04,20.0]
[1734340428703,0.12549,219.13,219.03,20.0]
[1734340428704,0.85574584,219.12,219.03,20.0]
[1734340429505,0.12549,219.11,219.01,20.0]
[1734340429704,0.98136229,219.11,219.01,20.0]
[1734340430298,0.25098,219.12,219.01,20.0]
[1734340430647,0.85582217,219.11,219.01,20.0]
[1734340431119,1.63999,219.1,219.0,20.68466974]
[1734340431319,2.49590235,219.1,219.0,20.68466974]
[1734340431520,1.63999,219.1,219.0,20.68466974]
[1734340431719,1.5145,219.1,219.0,20.68466974]
[1734340435123,1.5145,219.1,219.01,20.0]
[1734340435332,1.5145,219.1,219.03,20.0]
[1734340435628,1.5145,219.1,219.04,0.68458158]
[1734340436419,1.5145,219.1,219.02,20.0]
[1734340437631,1.5145,219.1,219.02,20.68462062]
[1734340438132,6.6427,219.14,219.04,20.0]
[1734340438329,6.6427,219.14,219.05,0.68449575]
[1734340438523,6.6427,219.14,219.06,20.0]
[1734340438727,6.6427,219.14,219.07,0.68449276]
[1734340445143,6.6427,219.14,219.06,20.0]
[1734340445345,6.6427,219.14,219.05,20.0]
[1734340445543,6.6427,219.14,219.06,0.68451569]
[1734340446249,6.6427,219.14,219.05,20.0]
[1734340447723,6.6427,219.14,218.97,0.6845912]
[1734340447724,0.12549,219.12,218.97,0.6845912]
[1734340448347,0.12549,219.12,218.98,0.12549]
[1734340448545,0.12549,219.12,218.99,0.68471784]
[1734340449061,0.12549,219.12,219.0,20.0]
[1734340449626,0.12549,219.12,218.98,28.73799945]
[1734340450260,0.12549,219.12,219.0,20.0]
[1734340450428,0.12549,219.12,219.01,0.68465539]
[1734340450628,0.12549,219.12,219.01,20.0]
[1734340451144,0.12549,219.12,219.0,20.0]
[1734340452432,0.12549,219.12,219.01,0.68473196]
[1734340453760,0.12549,219.12,219.0,20.0]
[1734340453761,0.12549,219.11,219.0,20.0]
[1734340453941,0.12549,219.1,219.0,20.0]
[1734340456667,0.25098,219.08,218.98,20.0]
[1734340456959,0.12549,219.06,218.93,11.4187]
[1734340457135,0.12549,219.05,218.94,0.68487858]
[1734340457335,0.12549,219.05,218.91,0.68492641]
[1734340458175,6.6626,219.07,218.91,0.68492641]
[1734340458176,0.12549,219.03,218.91,0.68492641]
[1734340459454,0.25098,219.01,218.91,0.68492641]
[1734340459639,1.10728349,219.01,218.91,0.68492641]
[1734340460244,1.10728349,219.01,218.92,20.0]
[1734340460735,1.10728349,219.01,218.9,1.23983255]
[1734340460736,0.25098,218.99,218.9,1.23983255]
[1734340460935,1.10737417,218.99,218.9,0.5547848]
[1734340471257,0.12549,218.96,218.9,0.5547848]
[1734340471457,0.98189895,218.96,218.9,0.5547848]
[1734340472180,0.12549,218.95,218.9,0.5547848]
[1734340473967,0.12549,218.94,218.9,0.5547848]
[1734340474356,0.12549,218.98,218.9,0.5547848]
[1734340474682,0.25098,218.98,218.9,0.5547848]
[1734340474974,0.12549,218.96,218.9,0.5547848]
[1734340475164,0.25098,218.98,218.9,0.5547848]
[1734340475376,0.12549,218.98,218.9,1.23986091]
[1734340475789,0.85628164,218.99,218.9,1.23986091]
[1734340476458,0.12549,218.98,218.9,1.23986091]
[1734340476664,6.2973,219.0,218.9,1.23986091]
[1734340476876,0.12549,218.99,218.9,1.23986091]
[1734340477178,0.25098,218.99,218.9,1.23986091]
[1734340477964,0.12549,218.99,218.9,1.23986091]
[1734340478660,0.12549,218.99,218.9,21.23986091]
[1734340479059,7.15358132,219.0,218.91,20.0]
[1734340479060,6.2973,219.0,218.91,20.0]
[1734340479268,6.2973,219.0,218.92,20.68493165]
[1734340480664,6.2973,219.0,218.93,20.0]
[1734340481175,1.537,219.02,218.93,20.68490066]
[1734340481557,1.537,219.02,218.93,0.68490066]
[1734340482279,1.537,219.02,218.93,20.68490066]
[1734340483180,1.537,219.02,218.93,20.0]
[1734340483768,0.25098,219.01,218.93,20.0]
[1734340483977,0.25098,219.01,218.91,0.68494257]
[1734340483978,1.10713926,219.01,218.91,20.0]
[1734340484167,1.537,219.02,218.92,20.68497871]
[1734340484376,1.537,219.02,218.92,0.68497871]
[1734340484684,1.537,219.02,218.93,20.0]
[1734340485600,6.6662,219.05,218.95,20.0]
[1734340485955,6.6662,219.05,218.96,20.0]
[1734340486165,1.5726,219.07,218.97,0.12549]
[1734340486373,6.3998,219.1,219.0,20.0]
[1734340487702,6.3998,219.1,219.0,20.68466545]
[1734340489706,6.3998,219.1,219.02,20.0]
[1734340490207,6.3998,219.1,219.0,20.0]
[1734340490368,6.3998,219.1,218.99,20.68463322]
[1734340490565,6.3998,219.1,219.0,20.0]
[1734340491277,6.3998,219.1,219.0,20.6847095]
[1734340493820,6.3998,219.1,219.0,0.6847095]
[1734340494115,6.3998,219.1,219.0,20.6847095]
[1734340495209,0.12549,219.11,219.02,20.0]
[1734340495388,0.12549,219.11,219.03,0.68462162]
[1734340496311,0.12549,219.11,219.0,0.68463071]
[1734340496312,1.10676839,219.11,219.0,0.68463071]
[1734340497575,0.12549,219.1,218.99,20.0]
[1734340497914,0.12549,219.1,218.96,6.95831356]
[1734340498589,6.0552,219.07,218.96,6.95831356]
[1734340498803,6.9111916,219.07,218.96,6.95831356]
[1734340499196,6.9111916,219.07,218.96,2.3308074]
[1734340499377,6.0552,219.07,218.96,2.3308074]
[1734340499584,6.0552,219.07,218.97,20.0]
[1734340499796,6.0552,219.07,218.98,0.68477106]
[1734340500408,6.0552,219.07,218.98,20.68477106]
[1734340501497,6.0552,219.07,219.0,20.0]
[1734340501681,6.0552,219.07,218.98,10.95957106]
[1734340501682,6.0552,219.07,219.01,20.68465701]
[1734340501885,6.0552,219.07,218.96,1.6461]
[1734340502131,0.981497,219.06,218.97,20.0]
[1734340502440,0.12549,219.06,218.97,20.6848056]
[1734340503611,6.0552,219.07,218.97,20.6848056]
[1734340503986,6.0552,219.07,218.99,20.0]
[1734340504316,6.0552,219.07,219.0,0.68465773]
[1734340505111,0.12549,219.11,219.0,0.68465773]
[1734340505422,0.98131274,219.11,219.0,0.68465773]
[1734340505597,0.12549,219.11,219.01,20.0]
[1734340505795,0.12549,219.11,219.02,0.68462363]
[1734340506115,0.98127126,219.11,219.02,0.68462363]
[1734340506296,0.12549,219.1,219.0,20.0]
[1734340506612,0.25098,219.08,218.97,20.68468931]
[1734340506912,0.25098,219.08,218.94,0.68476014]
[1734340507610,0.12549,219.07,218.94,0.68476014]
[1734340507798,0.12549,219.05,218.94,0.68476014]
[1734340507995,0.12549,219.04,218.94,0.68476014]
[1734340508188,0.12549,219.02,218.93,4.72659847]
[1734340508381,0.12549,219.01,218.91,5.3124823]
[1734340508814,0.12549,218.99,218.9,0.5547848]
[1734340509128,0.25098,218.97,218.9,0.5547848]
[1734340509318,1.10741121,218.97,218.9,0.5547848]
[1734340509523,6.4931,218.98,218.91,0.68509327]
[1734340510404,8.0331,219.03,218.93,20.0]
[1734340510595,8.0331,219.03,218.93,20.68492282]
[1734340510796,0.85616426,219.02,218.93,20.68492282]
[1734340511122,0.85616426,219.02,218.9,0.5547848]
[1734340511123,0.85616426,219.02,218.92,20.0]
[1734340511293,0.12549,219.01,218.91,20.0]
[1734340511500,0.12549,218.99,218.91,20.0]
[1734340512304,0.25098,218.99,218.9,0.5547848]
[1734340512502,0.12549,218.98,218.9,0.5547848]
[1734340512705,0.98188284,218.98,218.9,0.5547848]
[1734340513934,0.12549,218.99,218.9,0.5547848]
[1734340514094,0.98184954,219.0,218.9,0.5547848]
[1734340514095,0.12549,218.97,218.9,0.5547848]
[1734340514819,0.85641088,218.96,218.9,0.5547848]
[1734340515124,0.12549,218.99,218.9,0.5547848]
[1734340517699,0.25098,218.97,218.9,0.5547848]
[1734340517907,1.81738,218.95,218.9,0.5547848]
[1734340518223,0.12549,218.93,218.9,0.5547848]
[1734340520425,0.85656458,218.94,218.9,0.5547848]
[1734340520629,1.5664,218.95,218.9,0.5547848]
[1734340521402,0.98195722,218.94,218.9,0.5547848]
[1734340521928,0.12549,218.93,218.9,0.5547848]
[1734340525923,0.12549,218.93,218.77,13.03985716]
[1734340525924,0.25098,218.84,218.68,0.5547848]
[1734340526110,0.25098,218.82,218.68,0.5547848]
[1734340526435,0.12549,218.77,218.68,0.5547848]
[1734340526609,0.98281855,218.77,218.68,0.5547848]
[1734340526811,0.12549,218.76,218.68,0.5547848]
[1734340527209,0.12549,218.74,218.68,0.5547848]
[1734340527418,0.85734165,218.75,218.64,0.30229278]
[1734340527419,6.4624,218.72,218.64,0.30229278]
[1734340527728,0.98298031,218.71,218.64,0.30229278]
[1734340527928,0.85749031,218.71,218.64,0.30229278]
[1734340528136,0.12549,218.75,218.64,0.30229278]
[1734340528312,0.98276684,218.75,218.64,0.30229278]
[1734340528506,0.12549,218.74,218.65,0.6858129]
[1734340528945,6.0287,218.77,218.65,0.6858129]
[1734340529436,0.12549,218.75,218.65,0.6858129]
[1734340529615,6.0287,218.77,218.66,20.12549]
[1734340529933,6.0287,218.77,218.67,0.68570121]
[1734340530433,6.0522,218.82,218.68,20.12549]
[1734340530729,0.85706277,218.81,218.69,0.68565021]
[1734340531229,0.12549,218.8,218.69,0.68565021]
[1734340531442,0.85708723,218.79,218.69,0.68565021]
[1734340531645,0.98257723,218.8,218.69,0.68565021]
[1734340532015,0.98257723,218.8,218.69,20.68565021]
[1734340532230,0.12549,218.8,218.7,20.0]
[1734340532469,0.12549,218.8,218.71,0.68561409]
[1734340533746,0.85706178,218.79,218.69,0.68564942]
[1734340534827,0.85710136,218.79,218.69,0.68564942]
[1734340536047,0.85710136,218.79,218.62,1.79364124]
[1734340536048,0.37647,218.78,218.62,0.68567356]
[1734340536211,0.25098,218.76,218.62,0.68567356]
[1734340536412,0.12549,218.8,218.66,0.12549]
[1734340536612,0.85712551,218.79,218.66,0.81119041]
[1734340536832,0.12549,218.78,218.66,13.23001789]
[1734340537016,0.85709469,218.81,218.67,12.41882748]
[1734340537216,0.85709469,218.81,218.68,0.68564144]
[1734340537441,0.85709469,218.81,218.7,20.0]
[1734340537644,6.0522,218.82,218.69,0.12549]
[1734340537645,0.85696589,218.86,218.76,20.0]
[1734340537959,0.85684808,218.89,218.78,20.0]
[1734340538119,0.85684808,218.89,218.79,20.68540288]
[1734340538449,1.6047,218.97,218.84,20.0]
[1734340538658,1.6047,218.97,218.83,1.6413]
[1734340538659,0.85646382,219.03,218.91,12.41882748]
[1734340538957,0.8562297,219.05,218.87,0.68498376]
[1734340539155,0.8562297,219.05,218.89,20.0]
[1734340539322,12.2694297,219.05,218.89,20.0]
[1734340539760,12.2694297,219.05,218.85,0.68510379]
[1734340540628,0.12549,219.01,218.87,20.0]
[1734340540842,0.25098,219.0,218.87,20.0]
[1734340541147,0.12549,218.97,218.86,20.0]
[1734340541318,0.12549,218.96,218.86,20.0]
[1734340542269,0.98193223,218.96,218.87,20.0]
[1734340542422,0.12549,219.0,218.88,20.0]
[1734340543248,0.85644223,219.01,218.89,20.68508141]
[1734340543754,0.12549,219.0,218.89,0.68508141]
[1734340544247,0.25098,219.0,218.88,20.0]
[1734340544634,0.12549,218.99,218.88,20.0]
[1734340544847,0.12549,218.98,218.88,20.0]
[1734340545358,0.12549,218.98,218.89,20.68509087]
[1734340546248,0.12549,219.0,218.9,20.0]
[1734340546464,0.85627416,218.99,218.9,20.0]
[1734340546619,0.12549,218.98,218.9,20.0]
[1734340546820,0.85635147,218.97,218.88,20.0]
[1734340547223,0.12549,218.99,218.88,20.0]
[1734340547626,0.12549,218.99,218.9,20.0]
[1734340548856,0.12549,218.99,218.88,20.0]
[1734340549022,0.12549,218.98,218.88,20.0]
[1734340549221,0.12549,218.97,218.88,20.0]
[1734340550168,0.12549,218.95,218.81,12.41882748]
[1734340550326,0.37647,218.95,218.81,12.41882748]
[1734340550641,0.25098,218.93,218.79,12.41882748]
[1734340551043,0.25098,218.91,218.78,13.98302748]
[1734340551454,0.12549,218.89,218.78,1.5642]
[1734340551637,0.12549,218.87,218.75,12.04810586]
[1734340551962,0.25098,218.86,218.73,22.70512748]
[1734340552162,0.12549,218.84,218.73,22.70512748]
[1734340552750,0.12549,218.84,218.74,13.10435913]
[1734340552751,0.98240456,218.84,218.74,13.10435913]
[1734340552943,0.25098,218.87,218.74,13.10435913]
[1734340553143,1.10785785,218.87,218.74,13.10435913]
[1734340553342,0.98236785,218.87,218.76,12.41882748]
[1734340553542,20.12549,218.91,218.77,12.41882748]
[1734340553761,0.12549,218.89,218.8,20.0]
[1734340554080,0.25098,218.89,218.8,20.0]
[1734340554260,0.25098,218.89,218.77,12.41882748]
[1734340554450,0.25098,218.89,218.8,20.0]
[1734340554645,0.25098,218.89,218.77,12.41882748]
[1734340555262,0.25098,218.89,218.8,20.0]
[1734340555643,0.25098,218.89,218.76,20.68542452]
[1734340555852,0.25098,218.87,218.78,20.0]
[1734340556239,0.25098,218.87,218.79,20.0]
[1734340556456,0.37647,218.89,218.79,20.0]
[1734340556656,0.25098,218.87,218.79,20.0]
[1734340556969,0.25098,218.87,218.77,12.41882748]
[1734340557171,0.25098,218.87,218.78,0.68540825]
[1734340558868,0.8567854,218.88,218.78,13.10423573]
[1734340559050,0.8567758,218.9,218.8,12.41882748]
[1734340559241,1.826296,218.94,218.77,10.2847]
[1734340559242,0.85659,218.94,218.85,20.0]
[1734340559444,0.85659,218.94,218.86,20.0]
[1734340559671,6.91089987,218.96,218.9,20.0]
[1734340560368,6.1344,219.01,218.92,20.0]
[1734340560543,6.1344,219.01,218.9,20.0]
[1734340560544,0.85625653,219.0,218.9,33.1038327]
[1734340560746,0.12549,218.99,218.92,20.0]
[1734340561276,0.12549,218.97,218.87,12.41882748]
[1734340561495,0.12549,218.97,218.9,20.0]
[1734340561658,0.12549,218.97,218.86,13.10385989]
[1734340562051,0.25098,218.97,218.89,20.0]
[1734340562250,0.12549,218.97,218.89,20.0]
[1734340562563,0.25098,218.97,218.86,33.10385989]
[1734340562877,0.12549,218.98,218.88,20.0]
[1734340563083,0.12549,218.97,218.86,33.10385989]
[1734340563543,0.12549,218.97,218.87,12.41882748]
[1734340563741,0.12549,218.97,218.88,0.68507461]
[1734340564373,0.85639167,218.96,218.87,20.0]
[1734340564588,0.85639167,218.96,218.86,20.0]
[1734340564589,0.12549,218.95,218.82,12.41882748]
[1734340564752,0.12549,218.95,218.8,12.41882748]
[1734340564753,0.37647,218.95,218.8,12.41882748]
[1734340564955,0.25098,218.93,218.79,12.41882748]
[1734340565149,0.25098,218.93,218.81,12.41882748]
[1734340565355,0.12549,218.93,218.84,12.41882748]
[1734340565651,0.37647,218.95,218.82,13.10409561]
[1734340565857,0.25098,218.93,218.85,20.0]
[1734340566456,0.25098,218.93,218.82,0.68526813]
[1734340566656,6.2944,218.91,218.8,12.41882748]
[1734340566953,0.98218562,218.9,218.8,13.10418397]
[1734340567160,0.12549,218.9,218.8,13.10418397]
[1734340567554,0.12549,218.9,218.8,0.68535649]
[1734340567555,0.85666985,218.89,218.8,0.68535649]
[1734340568065,0.85666985,218.89,218.79,0.68534875]
[1734340568497,1.10766569,218.9,218.79,0.68534875]
[1734340569582,1.10766569,218.9,218.79,13.10417623]
[1734340569755,1.10766569,218.9,218.82,20.0]
[1734340570586,1.10766569,218.9,218.76,13.1041924]
[1734340570587,0.12549,218.88,218.76,13.1041924]
[1734340570883,0.25098,218.87,218.76,0.68536492]
[1734340571072,0.25098,218.85,218.72,13.10434936]
[1734340571875,0.37647,218.87,218.73,12.41882748]
[1734340572062,0.85695223,218.88,218.79,20.0]
[1734340572063,0.85689455,218.88,218.79,20.0]
[1734340572264,0.85674093,218.9,218.8,20.0]
[1734340572490,0.25098,218.89,218.8,20.0]
[1734340572805,0.85674093,218.9,218.8,20.0]
[1734340572806,0.8567383,218.9,218.82,12.41882748]
[1734340572959,6.2944,218.91,218.83,0.68527697]
[1734340573172,6.2944,218.91,218.83,13.10410445]
[1734340573492,6.2944,218.91,218.83,0.68527697]
[1734340573677,6.2944,218.91,218.85,20.0]
[1734340574369,6.2944,218.91,218.82,13.10408777]
[1734340574693,6.2944,218.91,218.85,20.0]
[1734340576066,0.12549,218.89,218.78,1.527]
[1734340576271,0.12549,218.89,218.78,0.68540685]
[1734340576679,0.12549,218.89,218.78,13.10423433]
[1734340577086,0.12549,218.89,218.79,12.41882748]
[1734340579370,0.12549,218.9,218.8,13.1041959]
[1734340579574,6.2944,218.91,218.84,20.0]
[1734340579797,6.2944,218.91,218.85,20.0]
[1734340580577,6.2944,218.91,218.87,20.0]
[1734340580800,7.6454,218.97,218.87,20.0]
[1734340581094,0.85641896,218.96,218.88,20.0]
[1734340581682,0.12549,218.95,218.87,20.0]
[1734340581903,0.85641896,218.96,218.86,20.0]
[1734340582096,0.85641896,218.96,218.87,20.0]
[1734340582299,0.12549,218.95,218.87,20.0]
[1734340582499,0.12549,218.95,218.88,20.0]
[1734340582873,6.0751,218.97,218.9,20.0]
[1734340583287,6.0751,218.97,218.89,20.68512757]
[1734340583688,6.0751,218.97,218.89,33.10395505]
[1734340584175,6.0751,218.97,218.89,20.68512757]
[1734340584375,0.85629283,218.96,218.89,20.0]
[1734340584599,0.12549,218.96,218.89,20.0]
[1734340585017,6.0751,218.97,218.9,20.0]
[1734340585794,1.5703,219.02,218.91,13.10386305]